lending/lending_fUSD_20240809
["ID","MTS","AMOUNT","RATE_DAILY","PERIOD"]
[334516652,1723171881521,-500.0,0.00024395,5]
[334516653,1723171881530,-500.0,0.00024395,5]
[334516654,1723171881540,-833.6,0.00024395,5]
[334516655,1723171881549,-500.0,0.00024395,5]
[334516656,1723171881558,-500.0,0.00024395,5]
[334516657,1723171881568,-500.0,0.00024395,5]
[334516658,1723171881577,-2150.58,0.00024395,5]
[334516659,1723171881586,-2150.58,0.00024395,5]
[334516660,1723171881596,-500.0,0.00024395,5]
[334516661,1723171881607,-2345.46,0.00024395,5]
[334516662,1723171881617,-2345.46,0.00024395,5]
[334516663,1723171881629,-518.05,0.00024395,5]
[334516664,1723171881638,-500.0,0.00024395,5]
[334516665,1723171881647,-660.98,0.00024395,5]
[334516666,1723171881657,-1087.85,0.00024395,5]
[334516667,1723171881666,-1087.85,0.00024395,5]
[334516668,1723171881676,-669.96,0.00024395,5]
[334516669,1723171881685,-500.0,0.00024395,5]
[334516670,1723171881695,-760.07,0.00024395,5]
[334516671,1723171881704,-500.0,0.00024395,5]
[334516672,1723171881714,-760.07,0.00024395,5]
[334516673,1723171881723,-500.0,0.00024395,5]
[334516674,1723171881732,-669.17,0.00024395,5]
[334516675,1723171881742,-500.0,0.00024395,5]
[334516676,1723171881751,-500.0,0.00024395,5]
[334516677,1723171881761,-500.0,0.00024395,5]
[334516678,1723171881771,-751.62,0.00024395,5]
[334516679,1723171881780,-661.89,0.00024395,5]
[334516680,1723171881789,-751.62,0.00024395,5]
[334516681,1723171881798,-751.62,0.00024395,5]
[334516682,1723171881808,-751.62,0.00024395,5]
[334516683,1723171881817,-751.81360163,0.00024395,5]
[334516684,1723171881826,-500.0,0.00024395,5]
[334516685,1723171881837,-731.09,0.00024395,5]
[334516686,1723171881846,-2113.55,0.00024395,5]
[334516687,1723171881855,-1179.51,0.00024395,5]
[334516688,1723171881864,-1179.51,0.00024395,5]
[334516689,1723171881874,-2015.89,0.00024395,5]
[334516690,1723171881884,-778.03,0.00024395,5]
[334516691,1723171881895,-598.99,0.00024395,5]
[334516692,1723171881904,-598.99,0.00024395,5]
[334516693,1723171881913,-598.99,0.00024395,5]
[334516694,1723171881922,-598.99,0.00024395,5]
[334516695,1723171881932,-599.01564485,0.00024395,5]
[334516696,1723171881941,-3716.14,0.00024395,5]
[334516697,1723171881950,-3716.14,0.00024395,5]
[334516698,1723171881960,-6388.29,0.00024395,5]
[334516699,1723171881969,-6388.29,0.00024395,5]
[334516700,1723171881978,-567.43,0.00024395,5]
[334516701,1723171881988,-1505.36,0.00024395,5]
[334516702,1723171881997,-512.1124601,0.00024395,5]
[334516703,1723171882006,-18922.96,0.00024395,5]
[334516704,1723171882016,-18922.96,0.00024395,5]
[334516705,1723171882025,-1088.16,0.00024395,5]
[334516706,1723171882034,-1735.36,0.00024395,5]
[334516707,1723171882043,-500.0,0.00024395,5]
[334516708,1723171882053,-3660.94,0.00024395,5]
[334516709,1723171882062,-3660.94,0.00024395,5]
[334516710,1723171882071,-580.74,0.00024395,5]
[334516711,1723171882080,-1346.12,0.00024395,5]
[334516712,1723171882089,-4584.4,0.00024395,5]
[334516713,1723171882099,-1285.24,0.00024395,5]
[334516714,1723171882107,-1099.01,0.00024395,5]
[334516715,1723171882117,-538.1,0.00024395,5]
[334516716,1723171882131,-1099.01,0.00024395,5]
[334516717,1723171882148,-538.1,0.00024395,5]
[334516718,1723171882157,-538.1,0.00024395,5]
[334516719,1723171882166,-538.1,0.00024395,5]
[334516720,1723171882175,-538.11346442,0.00024395,5]
[334516721,1723171882184,-613.41,0.00024395,5]
[334516722,1723171882193,-500.0,0.00024395,5]
[334516723,1723171882202,-500.0,0.00024395,5]
[334516724,1723171882210,-500.0,0.00024395,5]
[334516725,1723171882219,-583.3401387,0.00024395,5]
[334516726,1723171882229,-500.0,0.00024395,5]
[334516727,1723171882238,-513.24,0.00024395,5]
[334516728,1723171882247,-970.9,0.00024395,5]
[334516729,1723171882257,-970.9,0.00024395,5]
[334516730,1723171882266,-970.9,0.00024395,5]
[334516731,1723171882275,-970.9,0.00024395,5]
[334516732,1723171882284,-500.0,0.00024395,5]
[334516733,1723171882293,-971.11511366,0.00024395,5]
[334516734,1723171882303,-500.0,0.00024395,5]
[334516735,1723171882312,-500.0,0.00024395,5]
[334516736,1723171882321,-500.0,0.00024395,5]
[334516737,1723171882330,-198.17930448,0.00024395,5]
[334516738,1723171882339,-500.0,0.00024395,5]
[334516739,1723171882348,-500.0,0.00024395,5]
[334516740,1723171882358,-2254.7,0.00024395,5]
[334516741,1723171882367,-2254.7,0.00024395,5]
[334516742,1723171882380,-2715.05,0.00024395,5]
[334516743,1723171882390,-1180.1,0.00024395,5]
[334516744,1723171882399,-1372.31,0.00024395,5]
[334516745,1723171882409,-1372.31,0.00024395,5]
[334516746,1723171882419,-685.82,0.00024395,5]
[334516747,1723171882428,-685.82,0.00024395,5]
[334516748,1723171882437,-685.82,0.00024395,5]
[334516749,1723171882446,-685.82,0.00024395,5]
[334516750,1723171882456,-686.00585675,0.00024395,5]
[334516751,1723171882465,-763.14,0.00024395,5]
[334516752,1723171882474,-763.14,0.00024395,5]
[334516753,1723171882484,-1944.18,0.00024395,5]
[334516754,1723171882493,-763.14,0.00024395,5]
[334516755,1723171882502,-763.14,0.00024395,5]
[334516756,1723171882511,-763.37335985,0.00024395,5]
[334516757,1723171882520,-500.0,0.00024395,5]
[334516758,1723171882529,-5475.75,0.00024395,5]
[334516759,1723171882539,-5475.75,0.00024395,5]
[334516760,1723171882548,-500.0,0.00024395,5]
[334516761,1723171882558,-206.68982165,0.00024395,5]
[334516762,1723171882567,-500.0,0.00024395,5]
[334516763,1723171882576,-500.0,0.00024395,5]
[334516764,1723171882585,-500.0,0.00024395,5]
[334516765,1723171882594,-603.71,0.00024395,5]
[334516766,1723171882603,-500.0,0.00024395,5]
[334516767,1723171882613,-603.71,0.00024395,5]
[334516768,1723171882623,-1647.52,0.00024395,5]
[334516769,1723171882632,-329.86244522,0.00024395,5]
[334516770,1723171882641,-1647.52,0.00024395,5]
[334516771,1723171882650,-500.0,0.00024395,5]
[334516772,1723171882660,-1647.52,0.00024395,5]
[334516773,1723171882670,-1647.52,0.00024395,5]
[334516774,1723171882680,-1647.59747232,0.00024395,5]
[334516775,1723171882689,-1657.95,0.00024395,5]
[334516776,1723171882698,-1657.95,0.00024395,5]
[334516777,1723171882708,-698.82,0.00024395,5]
[334516778,1723171882717,-698.82,0.00024395,5]
[334516779,1723171882726,-698.82,0.00024395,5]
[334516780,1723171882736,-698.82,0.00024395,5]
[334516781,1723171882745,-698.92273978,0.00024395,5]
[334516782,1723171882754,-546.95,0.00024395,5]
[334516783,1723171882765,-546.95,0.00024395,5]
[334516784,1723171882774,-546.95,0.00024395,5]
[334516785,1723171882783,-546.95,0.00024395,5]
[334516786,1723171882793,-500.0,0.00024395,5]
[334516787,1723171882958,-546.98051889,0.00024395,5]
[334516788,1723171882969,-500.0,0.00024395,5]
[334516789,1723171882978,-500.0,0.00024395,5]
[334516790,1723171882988,-500.0,0.00024395,5]
[334516791,1723171882998,-303.85149016,0.00024395,5]
[334516792,1723171883008,-2462.55,0.00024395,5]
[334516793,1723171883017,-500.0,0.00024395,5]
[334516794,1723171883026,-554.71,0.00024395,5]
[334516795,1723171883036,-2430.76,0.00024395,5]
[334516796,1723171883046,-768.86,0.00024395,5]
[334516797,1723171883056,-4784.19,0.00024395,5]
[334516798,1723171883065,-4784.19,0.00024395,5]
[334516799,1723171883075,-768.86,0.00024395,5]
[334516800,1723171883084,-768.86,0.00024395,5]
[334516801,1723171883093,-4784.19,0.00024395,5]
[334516802,1723171883103,-768.86,0.00024395,5]
[334516803,1723171883112,-4784.19,0.00024395,5]
[334516804,1723171883123,-768.91169941,0.00024395,5]
[334516805,1723171883134,-4784.31854847,0.00024395,5]
[334516806,1723171883144,-1117.66,0.00024395,5]
[334516807,1723171883153,-1117.66,0.00024395,5]
[334516808,1723171883163,-1117.66,0.00024395,5]
[334516809,1723171883172,-1179.23,0.00024395,5]
[334516810,1723171883182,-1117.66,0.00024395,5]
[334516811,1723171883191,-1117.74152385,0.00024395,5]
[334516812,1723171883201,-7984.18,0.00024395,5]
[334516813,1723171883212,-7984.18,0.00024395,5]
[334516814,1723171883222,-5005.7,0.00024395,5]
[334516815,1723171883232,-5005.7,0.00024395,5]
[334516816,1723171883242,-1065.94,0.00024395,5]
[334516817,1723171883253,-500.0,0.00024395,5]
[334516818,1723171883263,-500.0,0.00024395,5]
[334516819,1723171883272,-500.0,0.00024395,5]
[334516820,1723171883283,-22868.86,0.00024395,5]
[334516821,1723171883292,-1029.68,0.00024395,5]
[334516822,1723171883302,-22868.86,0.00024395,5]
[334516823,1723171883314,-1029.68,0.00024395,5]
[334516824,1723171883324,-22868.86,0.00024395,5]
[334516825,1723171883335,-500.0,0.00024395,5]
[334516826,1723171883346,-1029.68,0.00024395,5]
[334516827,1723171883357,-22868.86,0.00024395,5]
[334516828,1723171883367,-500.0,0.00024395,5]
[334516829,1723171883378,-1029.68,0.00024395,5]
[334516830,1723171883387,-22869.01641216,0.00024395,5]
[334516831,1723171883396,-1029.83745925,0.00024395,5]
[334516832,1723171883406,-2348.69,0.00024395,5]
[334516833,1723171883416,-2348.69,0.00024395,5]
[334516834,1723171883427,-732.97,0.00024395,5]
[334516835,1723171883436,-787.01,0.00024395,5]
[334516836,1723171883447,-787.01,0.00024395,5]
[334516837,1723171883456,-522.35,0.00024395,5]
[334516838,1723171883465,-522.35,0.00024395,5]
[334516839,1723171883474,-522.35,0.00024395,5]
[334516840,1723171883484,-522.35,0.00024395,5]
[334516841,1723171883493,-500.0,0.00024395,5]
[334516842,1723171883503,-522.40982269,0.00024395,5]
[334516843,1723171883512,-1965.9,0.00024395,5]
[334516844,1723171883521,-1965.9,0.00024395,5]
[334516845,1723171883530,-1594.68,0.00024395,5]
[334516846,1723171883540,-1594.68,0.00024395,5]
[334516847,1723171883549,-1240.88,0.00024395,5]
[334516848,1723171883559,-1240.88,0.00024395,5]
[334516849,1723171883569,-1240.88,0.00024395,5]
[334516850,1723171883578,-1240.88,0.00024395,5]
[334516851,1723171883588,-1240.89754544,0.00024395,5]
[334516852,1723171883598,-378.52,0.00024395,5]
[334516853,1723171883608,-500.0,0.00024395,5]
[334516854,1723171883618,-396.55938022,0.00024395,5]
[334516855,1723171883631,-539.76,0.00024395,5]
[334516856,1723171883641,-879.25,0.00024395,5]
[334516857,1723171883651,-879.25,0.00024395,5]
[334516858,1723171883660,-12430.38,0.00024395,5]
[334516859,1723171883669,-12430.38,0.00024395,5]
[334516860,1723171883679,-588.19,0.00024395,5]
[334516861,1723171883689,-12430.38,0.00024395,5]
[334516862,1723171883698,-2674.59,0.00024395,5]
[334516863,1723171883707,-12430.38,0.00024395,5]
[334516864,1723171883717,-2674.59,0.00024395,5]
[334516865,1723171883726,-12430.46091019,0.00024395,5]
[334516866,1723171883736,-588.19,0.00024395,5]
[334516867,1723171883745,-588.19,0.00024395,5]
[334516868,1723171883755,-1788.76,0.00024395,5]
[334516869,1723171883766,-588.19,0.00024395,5]
[334516870,1723171883776,-588.42613706,0.00024395,5]
[334516871,1723171883785,-2634.52,0.00024395,5]
[334516872,1723171883795,-778.35,0.00024395,5]
[334516873,1723171883805,-500.0,0.00024395,5]
[334516874,1723171883815,-778.35,0.00024395,5]
[334516875,1723171883824,-304.05720554,0.00024395,5]
[334516876,1723171883834,-778.35,0.00024395,5]
[334516877,1723171883845,-778.35,0.00024395,5]
[334516878,1723171883855,-465.92,0.00024395,5]
[334516879,1723171883865,-778.48355595,0.00024395,5]
[334516880,1723171883877,-9557.82,0.00024395,5]
[334516881,1723171883886,-9557.82,0.00024395,5]
[334516882,1723171883895,-1036.78,0.00024395,5]
[334516883,1723171883906,-1036.78,0.00024395,5]
[334516884,1723171883916,-1017.55,0.00024395,5]
[334516885,1723171883927,-627.71,0.00024395,5]
[334516886,1723171883938,-1041.58,0.00024395,5]
[334516887,1723171883948,-1041.58,0.00024395,5]
[334516888,1723171883958,-1041.58,0.00024395,5]
[334516889,1723171883968,-1041.58,0.00024395,5]
[334516890,1723171883978,-1041.7082776,0.00024395,5]
[334516891,1723171883987,-500.0,0.00024395,5]
[334516892,1723171883997,-500.0,0.00024395,5]
[334516893,1723171884006,-593.97,0.00024395,5]
[334516894,1723171884016,-593.97,0.00024395,5]
[334516895,1723171884025,-593.97,0.00024395,5]
[334516896,1723171884035,-593.97,0.00024395,5]
[334516897,1723171884044,-594.14641004,0.00024395,5]
[334516898,1723171884053,-739.6,0.00024395,5]
[334516899,1723171884061,-2313.25,0.00024395,5]
[334516900,1723171884071,-500.0,0.00024395,5]
[334516901,1723171884080,-2313.25,0.00024395,5]
[334516902,1723171884089,-507.56,0.00024395,5]
[334516903,1723171884099,-507.56,0.00024395,5]
[334516904,1723171884109,-5701.83,0.00024395,5]
[334516905,1723171884118,-507.56,0.00024395,5]
[334516906,1723171884133,-5701.83,0.00024395,5]
[334516907,1723171884143,-4769.55,0.00024395,5]
[334516908,1723171884152,-507.56,0.00024395,5]
[334516909,1723171884161,-4769.55,0.00024395,5]
[334516910,1723171884170,-507.65142449,0.00024395,5]
[334516911,1723171884180,-3195.3,0.00024395,5]
[334516912,1723171884189,-5090.01,0.00024395,5]
[334516913,1723171884198,-5090.01,0.00024395,5]
[334516914,1723171884208,-500.0,0.00024395,5]
[334516915,1723171884217,-5090.01,0.00024395,5]
[334516916,1723171884227,-1055.55,0.00024395,5]
[334516917,1723171884236,-5090.01,0.00024395,5]
[334516918,1723171884245,-5090.10249666,0.00024395,5]
[334516919,1723171884254,-500.0,0.00024395,5]
[334516920,1723171884264,-500.0,0.00024395,5]
[334516921,1723171884273,-476.04732522,0.00024395,5]
[334516922,1723171884283,-5606.14,0.00024395,5]
[334516923,1723171884292,-5606.14,0.00024395,5]
[334516924,1723171884302,-500.0,0.00024395,5]
[334516925,1723171884311,-306.48,0.00024395,5]
[334516926,1723171884321,-301.30453881,0.00024395,5]
[334516927,1723171884330,-698.07,0.00024395,5]
[334516928,1723171884340,-698.07,0.00024395,5]
[334516929,1723171884349,-698.07,0.00024395,5]
[334516930,1723171884359,-698.07,0.00024395,5]
[334516931,1723171884368,-698.30915551,0.00024395,5]
[334516932,1723171884378,-662.03,0.00024395,5]
[334516933,1723171884388,-1143.18,0.00024395,5]
[334516934,1723171884397,-1143.18,0.00024395,5]
[334516935,1723171884406,-1362.05,0.00024395,5]
[334516936,1723171884416,-1362.05,0.00024395,5]
[334516937,1723171884425,-1402.26,0.00024395,5]
[334516938,1723171884434,-1362.05,0.00024395,5]
[334516939,1723171884443,-1402.26,0.00024395,5]
[334516940,1723171884453,-1362.05,0.00024395,5]
[334516941,1723171884462,-1362.21,0.00024395,5]
[334516942,1723171884472,-500.0,0.00024395,5]
[334516943,1723171884482,-885.43,0.00024395,5]
[334516944,1723171884491,-672.85,0.00024395,5]
[334516945,1723171884501,-3267.61,0.00024395,5]
[334516946,1723171884511,-3267.61,0.00024395,5]
[334516947,1723171884520,-3267.61,0.00024395,5]
[334516948,1723171884530,-3267.61,0.00024395,5]
[334516949,1723171884540,-3267.6449778,0.00024395,5]
[334516950,1723171884550,-500.0,0.00024395,5]
[334516951,1723171884559,-703.68,0.00024395,5]
[334516952,1723171884569,-703.68,0.00024395,5]
[334516953,1723171884578,-703.68,0.00024395,5]
[334516954,1723171884588,-703.68,0.00024395,5]
[334516955,1723171884597,-703.74989488,0.00024395,5]
[334516956,1723171884607,-2404.25,0.00024395,5]
[334516957,1723171884617,-2404.25,0.00024395,5]
[334516958,1723171884628,-2841.53,0.00024395,5]
[334516959,1723171884638,-2841.53,0.00024395,5]
[334516960,1723171884648,-500.0,0.00024395,5]
[334516961,1723171884657,-500.0,0.00024395,5]
[334516962,1723171884667,-408.18,0.00024395,5]
[334516963,1723171884677,-528.89358948,0.00024395,5]
[334516964,1723171884687,-1568.85,0.00024395,5]
[334516965,1723171884696,-1568.85,0.00024395,5]
[334516966,1723171884706,-1492.08,0.00024395,5]
[334516967,1723171884715,-594.87,0.00024395,5]
[334516968,1723171884725,-500.0,0.00024395,5]
[334516969,1723171884734,-7576.58,0.00024395,5]
[334516970,1723171884744,-7576.58,0.00024395,5]
[334516971,1723171884754,-21990.9,0.00024395,5]
[334516972,1723171884764,-21990.9,0.00024395,5]
[334516973,1723171884774,-5978.79,0.00024395,5]
[334516974,1723171884783,-5978.79,0.00024395,5]
[334516975,1723171884793,-500.0,0.00024395,5]
[334516976,1723171884802,-500.0,0.00024395,5]
[334516977,1723171884812,-6192.07,0.00024395,5]
[334516978,1723171884822,-6192.07,0.00024395,5]
[334516979,1723171884831,-1548.35,0.00024395,5]
[334516980,1723171884841,-10706.0,0.00024395,5]
[334516981,1723171884851,-10706.0,0.00024395,5]
[334516982,1723171884860,-500.0,0.00024395,5]
[334516983,1723171884870,-500.0,0.00024395,5]
[334516984,1723171884882,-7235.6,0.00024395,5]
[334516985,1723171884891,-12014.54,0.00024395,5]
[334516986,1723171884903,-12014.54,0.00024395,5]
[334516987,1723171884912,-7235.6,0.00024395,5]
[334516988,1723171884922,-1023.89,0.00024395,5]
[334516989,1723171884931,-1426.29,0.00024395,5]
[334516990,1723171884941,-426.92059546,0.00024395,5]
[334516991,1723171884951,-36150.29,0.00024395,5]
[334516992,1723171884960,-500.0,0.00024395,5]
[334516993,1723171884969,-36150.29,0.00024395,5]
[334516994,1723171884979,-500.0,0.00024395,5]
[334516995,1723171884988,-500.0,0.00024395,5]
[334516996,1723171884998,-510.25441837,0.00024395,5]
[334516997,1723171885007,-2736.55,0.00024395,5]
[334516998,1723171885016,-2736.55,0.00024395,5]
[334516999,1723171885025,-585.22,0.00024395,5]
[334517000,1723171885034,-1687.86,0.00024395,5]
[334517001,1723171885043,-500.0,0.00024395,5]
[334517002,1723171885052,-545.34,0.00024395,5]
[334517003,1723171885061,-545.34,0.00024395,5]
[334517004,1723171885070,-500.0,0.00024395,5]
[334517005,1723171885080,-1911.26,0.00024396,5]
[334517006,1723171885089,-500.0,0.00024396,5]
[334517007,1723171885098,-726.97,0.00024396,5]
[334517008,1723171885107,-500.0,0.00024396,5]
[334517009,1723171885117,-1811.01,0.00024396,5]
[334517010,1723171885126,-500.0,0.00024396,5]
[334517011,1723171885135,-1003.44,0.00024396,5]
[334517012,1723171885144,-500.0,0.00024396,5]
[334517013,1723171885153,-800.94,0.00024396,5]
[334517014,1723171885162,-557.49,0.00024396,5]
[334517015,1723171885171,-1815.71,0.00024396,5]
[334517016,1723171885181,-500.0,0.00024396,5]
[334517017,1723171885190,-1228.71,0.00024396,5]
[334517018,1723171885200,-914.69,0.00024396,5]
[334517019,1723171885210,-165.25934837,0.00024396,5]
[334517020,1723171885219,-2869.45,0.00024396,5]
[334517021,1723171885229,-2678.36,0.00024396,5]
[334517022,1723171885238,-520.95508592,0.00024396,5]
[334517023,1723171885247,-848.65,0.00024396,5]
[334517024,1723171885257,-500.0,0.00024396,5]
[334517025,1723171885266,-2190.14,0.00024396,5]
[334517026,1723171885275,-1752.48,0.00024396,5]
[334517027,1723171885284,-644.39,0.00024396,5]
[334517028,1723171885293,-607.23,0.00024396,5]
[334517029,1723171885302,-500.0,0.00024396,5]
[334517030,1723171885311,-643.53,0.00024396,5]
[334517031,1723171885320,-809.54,0.00024396,5]
[334517032,1723171885330,-1293.91,0.00024396,5]
[334517033,1723171885339,-500.0,0.00024396,5]
[334517034,1723171885348,-572.55,0.00024396,5]
[334517035,1723171885358,-2712.63,0.00024396,5]
[334517036,1723171885367,-4126.62,0.00024396,5]
[334517037,1723171885377,-3085.08,0.00024396,5]
[334517038,1723171885387,-2932.68,0.00024396,5]
[334517039,1723171885396,-1397.91,0.00024396,5]
[334517040,1723171885404,-1457.89,0.00024396,5]
[334517041,1723171885414,-500.0,0.00024396,5]
[334517042,1723171885423,-3094.81,0.00024396,5]
[334517043,1723171885432,-776.73,0.00024396,5]
[334517044,1723171885442,-500.0,0.00024396,5]
[334517045,1723171885451,-500.0,0.00024396,5]
[334517046,1723171885460,-3406.17,0.00024396,5]
[334517047,1723171885469,-500.0,0.00024396,5]
[334517048,1723171885479,-500.0,0.00024396,5]
[334517049,1723171885488,-1915.74,0.00024396,5]
[334517050,1723171885498,-421.9,0.00024396,5]
[334517051,1723171885508,-1107.61,0.00024396,5]
[334517052,1723171885518,-500.0,0.00024396,5]
[334517053,1723171885527,-500.0,0.00024396,5]
[334517054,1723171885536,-500.0,0.00024396,5]
[334517055,1723171885546,-500.0,0.00024396,5]
[334517056,1723171885555,-2152.85,0.00024396,5]
[334517057,1723171885564,-500.0,0.00024396,5]
[334517058,1723171885573,-500.0,0.00024396,5]
[334517059,1723171885582,-500.0,0.00024396,5]
[334517060,1723171885592,-1030.47,0.00024396,5]
[334517061,1723171885601,-500.0,0.00024396,5]
[334517062,1723171885611,-644.26,0.00024396,5]
[334517063,1723171885620,-500.0,0.00024396,5]
[334517064,1723171885631,-500.0,0.00024396,5]
[334517065,1723171885641,-500.0,0.00024396,5]
[334517066,1723171885651,-500.0,0.00024396,5]
[334517067,1723171885660,-833.6,0.00024396,5]
[334517068,1723171885669,-500.0,0.00024396,5]
[334517069,1723171885678,-500.0,0.00024396,5]
[334517070,1723171885687,-518.05,0.00024396,5]
[334517071,1723171885697,-315.76,0.00024396,5]
[334517072,1723171885706,-660.98,0.00024396,5]
[334517073,1723171885715,-1087.85,0.00024396,5]
[334517074,1723171885724,-669.96,0.00024396,5]
[334517075,1723171885733,-500.0,0.00024396,5]
[334517076,1723171885743,-500.0,0.00024396,5]
[334517077,1723171885751,-760.07,0.00024396,5]
[334517078,1723171885760,-500.0,0.00024396,5]
[334517079,1723171885773,-669.17,0.00024396,5]
[334517080,1723171885782,-381.33222258,0.00024396,5]
[334517081,1723171885791,-500.0,0.00024396,5]
[334517082,1723171885801,-661.89,0.00024396,5]
[334517083,1723171885810,-500.0,0.00024396,5]
[334517084,1723171885819,-731.09,0.00024396,5]
[334517085,1723171885828,-2113.55,0.00024396,5]
[334517086,1723171885837,-1179.51,0.00024396,5]
[334517087,1723171885848,-2015.89,0.00024396,5]
[334517088,1723171885858,-778.03,0.00024396,5]
[334517089,1723171885868,-3716.14,0.00024396,5]
[334517090,1723171885878,-500.0,0.00024396,5]
[334517091,1723171885888,-567.43,0.00024396,5]
[334517092,1723171885898,-1505.36,0.00024396,5]
[334517093,1723171885908,-1088.16,0.00024396,5]
[334517094,1723171885917,-1735.36,0.00024396,5]
[334517095,1723171885927,-500.0,0.00024396,5]
[334517096,1723171885936,-3660.94,0.00024396,5]
[334517097,1723171885945,-580.74,0.00024396,5]
[334517098,1723171885954,-1346.12,0.00024396,5]
[334517099,1723171885964,-4584.4,0.00024396,5]
[334517100,1723171885973,-1285.24,0.00024396,5]
[334517101,1723171885983,-1099.01,0.00024396,5]
[334517102,1723171885992,-613.41,0.00024396,5]
[334517103,1723171886002,-500.0,0.00024396,5]
[334517104,1723171886011,-513.24,0.00024396,5]
[334517105,1723171886021,-500.0,0.00024396,5]
[334517106,1723171886030,-500.0,0.00024396,5]
[334517107,1723171886040,-500.0,0.00024396,5]
[334517108,1723171886049,-375.71697768,0.00024396,5]
[334517109,1723171886059,-5520.18,0.00024396,5]
[334517110,1723171886068,-2715.05,0.00024396,5]
[334517111,1723171886078,-1180.1,0.00024396,5]
[334517112,1723171886087,-1372.31,0.00024396,5]
[334517113,1723171886098,-8839.04,0.00024396,5]
[334517114,1723171886107,-1944.18,0.00024396,5]
[334517115,1723171886117,-500.0,0.00024396,5]
[334517116,1723171886128,-5475.75,0.00024396,5]
[334517117,1723171886138,-500.0,0.00024396,5]
[334517118,1723171886147,-603.71,0.00024396,5]
[334517119,1723171886156,-500.0,0.00024396,5]
[334517120,1723171886165,-3247.8,0.00024396,5]
[334517121,1723171886175,-1657.95,0.00024396,5]
[334517122,1723171886185,-160.513125,0.00024396,7]
[334517123,1723171886195,-2462.55,0.00024396,5]
[334517124,1723171886205,-500.0,0.00024396,5]
[334517125,1723171886214,-554.71,0.00024396,5]
[334517126,1723171886223,-2430.76,0.00024396,5]
[334517127,1723171886389,-3000.82,0.00024396,5]
[334517128,1723171886400,-1179.23,0.00024396,5]
[334517129,1723171886409,-7984.18,0.00024396,5]
[334517130,1723171886419,-14156.83,0.00024396,5]
[334517131,1723171886429,-1065.94,0.00024396,5]
[334517132,1723171886439,-500.0,0.00024396,5]
[334517133,1723171886449,-500.0,0.00024396,5]
[334517134,1723171886459,-500.0,0.00024396,5]
[334517135,1723171886468,-500.0,0.00024396,5]
[334517136,1723171886477,-500.0,0.00024396,5]
[334517137,1723171886487,-732.97,0.00024396,5]
[334517138,1723171886496,-24585.65,0.00024396,5]
[334517139,1723171886505,-787.01,0.00024396,5]
[334517140,1723171886515,-500.0,0.00024396,5]
[334517141,1723171886529,-500.0,0.00024396,5]
[334517142,1723171886538,-879.25,0.00024396,5]
[334517143,1723171886548,-6055.07,0.00024396,5]
[334517144,1723171886558,-1788.76,0.00024396,5]
[334517145,1723171886567,-2634.52,0.00024396,5]
[334517146,1723171886577,-151.0,0.00024396,7]
[334517147,1723171886586,-9557.82,0.00024396,5]
[334517148,1723171886596,-1017.55,0.00024396,5]
[334517149,1723171886605,-627.71,0.00024396,5]
[334517150,1723171886614,-500.0,0.00024396,5]
[334517151,1723171886626,-500.0,0.00024396,5]